{"text_format":"1","workbook":"xlsx","n_sheets":3,"sheets":["入力シート","お客様控","国際業務室控"],"not_rendered":{"charts":0,"images":1,"macros":1,"external_links":0,"defined_names":3,"comments":0,"pivot_tables":0},"unopened":[],"bounds":{"document_bytes":16777216,"sheet_cells":100000,"rows_first":2000,"rows_last":500,"rows_between":2000,"halvings":0,"cell_chars":16384,"cell_head_chars":4096},"cells_cut":0,"cells_raw":0,"read":"whole","date_system":"1900"}

{"sheet":"入力シート","index":0,"n_rows":70,"n_cols":16,"rows_kept":70,"cut":false,"hidden":false,"merged":[[66,1,71,1],[68,4,68,12],[69,3,71,3],[69,4,71,12],[66,4,67,12],[66,3,67,3],[0,0,1,6],[39,3,39,7],[11,9,11,10],[15,11,15,15],[17,9,17,10],[17,11,17,15],[19,11,19,15],[26,10,26,11],[28,10,28,11],[24,10,24,11],[24,14,24,15],[30,13,30,15],[21,3,21,7],[11,11,11,12],[3,3,3,7],[23,3,23,7],[28,14,28,15],[14,3,15,4],[64,5,64,6],[33,9,33,15],[32,9,32,12],[51,5,51,7],[52,5,52,7],[37,3,37,7],[35,3,35,7],[33,3,33,7],[54,7,54,14],[62,3,62,15],[57,3,57,9],[58,3,58,9],[59,3,59,9],[60,3,60,9],[13,11,13,15],[9,4,9,7],[15,9,15,10],[26,14,26,15],[16,3,16,7],[21,13,21,15],[11,3,11,7],[13,3,13,7],[7,3,7,7],[7,9,7,10],[9,9,9,10],[31,6,31,7],[31,4,31,5],[13,9,13,10],[18,3,18,5],[25,3,25,7],[19,9,19,10],[27,3,27,7],[29,3,29,7]]}
["信用状つき輸出為替取組依頼書作成入力画面",null,null,null,null,null,null,null,"※文字数が多い場合、印刷後、全ての文字が",null,null,null,null,null,null,"○"]
[null,null,null,null,null,null,null,null,"　表示されているか、必ずご確認ください。"]
[]
[1,"DATE(日付）"]
[]
[1,"依頼種別",null,null,"買取",null,"取立"]
[]
[2,"APPLICANT（依頼人）",null,null,null,null,null,null,16,"INTEREST TO BE BORN BY（利息負担者）",null,null,"SHIPPER（国内）",null,"BUYER（海外）"]
[]
[3,"DRAFT AMOUNT（手形金額）",null,null,null,null,null,null,17,"L/C　ORIGINAL",null,null,"ATTACHED",null,"NOT　ATTACHED"]
[]
[4,"LESS(IF ANY)",null,null,null,null,null,null,18,"SHIPPED ON（船積日）"]
[]
[5,"TENOR（手形条件）",null,null,null,null,null,null,19,"FROM（積込港）※都市名"]
[null,null,null,"AT SIGHT ・  　　　  DAYS",null,"after","SIGHT"]
[null,null,null,null,null,"from","B/L DATE",null,20,"TO（陸揚港）"]
[5,"DUE ON(期日）"]
[null,null,null,null,null,null,null,null,20,"最終目的地"]
[6,"DRAFT NO. & DATE",null,null,null,null,"＆"]
[null,"（手形番号及び日付）",null,null,null,null,null,null,21,"PER（船名）"]
[]
[7,"L／C NO.（信用状番号）",null,null,null,null,null,null,22,"決済方法",null,"SPOT","金額　"]
[]
[8,"DATE（発行日）",null,null,null,null,null,null,null,null,null,"CONT"]
[null,null,null,null,null,null,null,null,null,null,"CONT NO, 856-",null,null,"金額　"]
[9,"ISSUED　BY（発行銀行）"]
[null,null,null,null,null,null,null,null,null,null,"CONT NO. 856-",null,null,"金額　"]
[10,"EXPIRY（有効期限）"]
[null,null,null,null,null,null,null,null,null,null,"CONT NO. 856-",null,null,"金額　"]
[11,"SHIPPING　EXPIRY（積出期限）"]
[null,null,null,null,null,null,null,null,null,null,null,"NON-EX.","金額　"]
[12,"PRESENTATION（呈示期間）",null,"WITHIN",null,null,"DAYS AFTER B/L DATE"]
[null,null,null,null,null,null,null,null,23,"OTHER　INSTRUCTIONS IF ANY"]
[13,"A/C（BUYER）（輸入者）"]
[]
[14,"DRAWER（輸出者）"]
[]
[15,"COMMODITY & QUANTITY\n（商品名及び数量）"]
[]
[15,"（原産地）"]
[]
[]
[24,"DOCUMENTS　ATTACHED",null,"DRAFT","Comm.Inv.","Cons./\nCust.Inv.","B/L/\nair way","Insurance \nPol./Cert.","W/M","Pkg.List","Cert Origin","Cert.","State.","N.N. B/L"]
[null,"（添付書類）"]
[]
[25,"振込依頼書",null,null,"添付",null,"なし"]
[]
[26,"信用状条件不一致項目",null,null,"LATE　SHIPMENT（期限後積出）"]
[null,null,null,null,"LATE　PRESENTATION（呈示期間後呈示）"]
[null,null,null,null,"CREDIT　EXPIRED（有効期限後呈示）"]
[null,null,null,null,"PARTIAL　SHIPMENT（分割積出）"]
[null,null,null,null,"その他（　　　　　　　　　　　　　　　　　　　　　　　　　　　　　）",null,null,null,"　）"]
[null,null,null,null,"その他（　　　　　　　　　　　　　　　　　　　　　　　　　　　　　）",null,null,null,"　）"]
[]
[27,"Special Instructions",null,null,"リスト付信用状",null,"（銀行名：",null,null,null,null,null,null,null,null,"）"]
[]
[null,"輸出書類送付先詳細情報"]
[28,"送付先名称（銀行名・支店名）"]
[28,"送付先の担当部署名（担当者）"]
[28,"送付先住所 ZIPCODE"]
[28,"送付先電話番号"]
[]
[29,"銀行連絡欄"]
[]
[30,"お取引店　　店番　＆　店名",null,null,"＆"]
[null,"　　　　　　　　　　　　　"]
[null,"右記内容をご確認いただき、問題がなければそれぞれ○を選択して下さい。",null,null,"「外国為替及び外国貿易法に基づく『貿易に関する支払規制』及び『資金使途規制』等への対応について」を確認しました。「外国為替及び外国貿易法」、「米国OFAC」等の規制対象取引に該当しません。"]
[]
[null,null,null,null,"取引関係者およびその実質的支配者は北朝鮮に住所等を有する者等ではありません。"]
[null,null,null,null,"取引関係者の中に国連等の経済制裁対象国の住所若しくは居住を有する自然人若しくは主たる事務所を有する法人、その他の団体（当該法人その他の団体の外国にある支店、出張所その他事務所を含む）、またはこれらのものにより実質的に支配されている法人、その他の団体が存在しないことを確認しました。"]

{"sheet":"お客様控","index":1,"n_rows":50,"n_cols":16,"rows_kept":50,"cut":false,"hidden":false,"merged":[[49,10,49,11],[49,13,49,15],[25,3,25,7],[36,5,36,7],[37,5,37,7],[39,7,39,14],[41,3,41,15],[42,3,42,15],[43,3,43,15],[44,3,44,15],[35,9,37,15],[46,2,46,15],[47,2,47,15],[48,2,48,15],[19,14,19,15],[20,3,20,7],[20,14,20,15],[21,4,21,5],[22,3,22,7],[22,13,22,15],[19,10,19,11],[20,10,20,11],[21,10,21,11],[19,3,19,7],[23,3,23,7],[23,9,23,12],[24,3,24,7],[24,9,24,15],[15,3,15,4],[15,5,15,7],[15,9,15,10],[15,11,15,15],[21,6,21,7],[21,14,21,15],[16,3,16,7],[16,9,16,10],[16,11,16,15],[17,3,17,7],[17,13,17,15],[18,3,18,7],[0,10,0,11],[0,12,0,13],[0,14,0,15],[1,10,1,11],[1,12,1,13],[12,11,12,15],[14,3,14,7],[14,9,14,10],[2,1,2,10],[2,11,2,12],[2,13,2,15],[14,11,14,15],[13,3,13,7],[13,9,13,10],[13,11,13,15],[11,4,11,7],[11,9,11,10],[7,9,8,10],[12,3,12,7],[12,9,12,10],[7,11,8,12],[7,13,8,14],[7,15,8,15],[8,6,8,7],[10,3,10,7],[10,9,10,10]]}
[null,"APPLICATION FOR EXPORT BILL (WITH LETTER OF CREDIT)",null,null,null,null,null,null,null,null,null,null,null,null,"お客様控"]
[null,"信用状つき輸出為替取組依頼書"]
[null,"ＴＯ ＴＨＥ ＳＥＮＳＨＵ ＩＫＥＤＡ　ＢＡＮＫ, ＬＴＤ．",null,null,null,null,null,null,null,null,null,"ＤＡＴＥ （日付）",null,{"$f":"入力シート!D4","v":"00:00:00"}]
[null,"In accordance with our general letter of hypothecation on foreign documentary bill of exchange "]
[null,"previously submitted to you, we herewith hand you our drafts and documents described below "]
[null,"for your NEGOTIATION/COLLECTION.  Kindly credit the proceeds to our YEN/DOLLAR account with you.（該当に○をお願いします）"]
[]
[null,"依頼種別",null,{"$f":"入力シート!D6","v":0},"買取",{"$f":"入力シート!F6","v":0},"取立"]
[null,"OUR　NO.（当行参照番号）",null,null,"-",null,"（店番　　　　　）"]
[]
[null,"APPLICANT（依頼人）",null,{"$f":"入力シート!D8","v":0},null,null,null,null,null,"INTEREST TO BE BORN BY\n（利息負担者）",null,{"$f":"入力シート!L8","v":0},"SHIPPER\n（国内）",{"$f":"入力シート!N8","v":0},"BUYER\n（海外）"]
[null,"DRAFT AMOUNT（手形金額）",null,{"$f":"入力シート!D10","v":0},{"$f":"入力シート!E10","v":0},null,null,null,null,"L/C　ORIGINAL",null,{"$f":"入力シート!L10","v":0},"ATTACHED",{"$f":"入力シート!N10","v":0},"NOT　ATTACHED"]
[null,"LESS(IF ANY)",null,{"$f":"入力シート!D12","v":0},null,null,null,null,null,"SHIPPED ON（船積日）",null,{"$f":"入力シート!L12","v":"00:00:00"}]
[null,"TENOR（手形条件）",null,{"$f":"入力シート!D14","v":0},null,null,null,null,null,"FROM（積込港）",null,{"$f":"入力シート!L14","v":"00:00:00"}]
[null,"DUE ON(期日）",null,{"$f":"入力シート!D17","v":"00:00:00"},null,null,null,null,null,"TO（陸揚港）",null,{"$f":"入力シート!L16","v":0}]
[null,"DRAFT NO. & DATE\n（手形番号及び日付）",null,{"$f":"入力シート!D19","v":0},null,{"$f":"入力シート!H19","v":"00:00:00"},null,null,null,"最終目的地",null,{"$f":"入力シート!L18","v":0}]
[null,"L／C NO.（信用状番号）",null,{"$f":"入力シート!D22","v":0},null,null,null,null,null,"PER（船名）",null,{"$f":"入力シート!L20","v":0}]
[null,"DATE（発行日）",null,{"$f":"入力シート!D24","v":"00:00:00"},null,null,null,null,null,"決済方法",{"$f":"入力シート!K22","v":0},"SPOT","金額",{"$f":"入力シート!N22","v":0}]
[null,"ISSUED　BY（発行銀行）",null,{"$f":"入力シート!D26","v":0},null,null,null,null,null,null,{"$f":"入力シート!K24","v":0},"CONT"]
[null,"EXPIRY（有効期限）",null,{"$f":"入力シート!D28","v":"00:00:00"},null,null,null,null,null,null,"CONT NO, 856-",null,{"$f":"入力シート!M25","v":0},"金額　",{"$f":"入力シート!O25","v":0}]
[null,"SHIPPING　EXPIRY（積出期限）",null,{"$f":"入力シート!D30","v":"00:00:00"},null,null,null,null,null,null,"CONT NO. 856-",null,{"$f":"入力シート!M27","v":0},"金額　",{"$f":"入力シート!O27","v":0}]
[null,"PRESENTATION（呈示期間）",null,"WITHIN",{"$f":"入力シート!E32","v":0},null,"DAYS AFTER B/L DATE",null,null,null,"CONT NO. 856-",null,{"$f":"入力シート!M29","v":0},"金額　",{"$f":"入力シート!O29","v":0}]
[null,"A/C（BUYER）（輸入者）",null,{"$f":"入力シート!D34","v":0},null,null,null,null,null,null,{"$f":"入力シート!K31","v":0},"NON-EX.","金額",{"$f":"入力シート!N31","v":0}]
[null,"DRAWER（輸出者）",null,{"$f":"入力シート!D36","v":0},null,null,null,null,null,"OTHER　INSTRUCTIONS IF ANY"]
[null,"COMMODITY&QUANTITY\n（商品名及び数量）",null,{"$f":"入力シート!D38","v":0},null,null,null,null,null,{"$f":"入力シート!J34","v":0}]
[null,"（原産地）",null,{"$f":"入力シート!D40","v":0}]
[]
[null,"DOCUMENTS　ATTACHED",null,"DRAFT","Comm.Inv.","Cons./\nCust.Inv.","B/L/\nair way","Insurance \nPol./Cert.","W/M","Pkg.List","Cert Origin","Cert.","State.","N.N. B/L",{"$f":"入力シート!O43","v":0},{"$f":"入力シート!P43","v":0}]
[null,"（添付書類）",null,{"$f":"入力シート!D44","v":0},{"$f":"入力シート!E44","v":0},{"$f":"入力シート!F44","v":0},{"$f":"入力シート!G44","v":0},{"$f":"入力シート!H44","v":0},{"$f":"入力シート!I44","v":0},{"$f":"入力シート!J44","v":0},{"$f":"入力シート!K44","v":0},{"$f":"入力シート!L44","v":0},{"$f":"入力シート!M44","v":0},{"$f":"入力シート!N44","v":0},{"$f":"入力シート!O44","v":0},{"$f":"入力シート!P44","v":0}]
[]
[null,"振込依頼書",null,{"$f":"入力シート!D46","v":0},"添付",{"$f":"入力シート!F46","v":0},"なし"]
[]
[null,"信用状条件不一致項目",null,{"$f":"入力シート!D48","v":0},"LATE　SHIPMENT（期限後積出）"]
[null,null,null,{"$f":"入力シート!D49","v":0},"LATE　PRESENTATION（呈示期間後呈示）"]
[null,null,null,{"$f":"入力シート!D50","v":0},"CREDIT　EXPIRED（有効期限後呈示）",null,null,null,null,"銀行連絡欄"]
[null,null,null,{"$f":"入力シート!D51","v":0},"PARTIAL　SHIPMENT（分割積出）"]
[null,null,null,{"$f":"入力シート!D52","v":0},"その他（　　　　　　　　　　　　　　　　　　　　　　　　　　　　　）",{"$f":"入力シート!F52","v":0},null,null,"　）"]
[null,null,null,{"$f":"入力シート!D53","v":0},"その他（　　　　　　　　　　　　　　　　　　　　　　　　　　　　　）",{"$f":"入力シート!F53","v":0},null,null,"　）"]
[]
[null,"Special Instructions",null,{"$f":"入力シート!D55","v":0},"リスト付信用状",null,"（銀行名：",{"$f":"入力シート!H55","v":0},null,null,null,null,null,null,null,"）"]
[null,"輸出書類送付先詳細情報"]
[null,"送付先名称（銀行名・支店名）",null,{"$f":"入力シート!D58","v":0}]
[null,"送付先の担当部署名（担当者）",null,{"$f":"入力シート!D59","v":0}]
[null,"送付先住所 ZIPCODE",null,{"$f":"入力シート!D60","v":0}]
[null,"送付先電話番号",null,{"$f":"入力シート!D61","v":0}]
[]
[null,{"$f":"IF(入力シート!D67=\"〇\",\"✔\",\"\")","v":""},"「外国為替及び外国貿易法に基づく『貿易に関する支払規制』及び『資金使途規制』等への対応について」を確認しました。「外国為替及び外国貿易法」、「米国OFAC」等の規制対象取引に該当しません。"]
[null,{"$f":"IF(入力シート!D69=\"〇\",\"✔\",\"\")","v":""},"取引関係者およびその実質的支配者は北朝鮮に住所等を有する者等ではありません。"]
[null,{"$f":"IF(入力シート!D70=\"〇\",\"✔\",\"\")","v":""},"取引関係者の中に国連等の経済制裁対象国の住所若しくは居住を有する自然人若しくは主たる事務所を有する法人、その他の団体（当該法人その他の団体の外国にある支店、出張所その他事務所を含む）、またはこれらのものにより実質的に支配されている法人、その他の団体が存在しないことを確認しました。"]
[null,null,null,null,null,null,null,null,null,"店番",{"$f":"入力シート!D65","v":0},null,"店名",{"$f":"入力シート!F65","v":0}]

{"sheet":"国際業務室控","index":2,"n_rows":69,"n_cols":35,"rows_kept":69,"cut":false,"hidden":false,"merged":[[62,17,63,21],[23,3,23,7],[25,3,25,7],[21,6,21,7],[21,4,21,5],[21,14,21,15],[21,10,21,11],[49,2,49,14],[47,2,47,14],[48,2,48,14],[7,15,8,15],[7,13,8,14],[19,10,19,11],[13,11,13,15],[15,9,15,10],[16,9,16,10],[68,17,68,21],[39,7,39,14],[33,9,36,15],[23,9,23,12],[22,13,22,15],[22,3,22,7],[24,9,24,15],[24,3,24,7],[36,5,36,7],[37,5,37,7],[41,3,41,15],[42,3,42,15],[50,10,50,11],[50,13,50,15],[43,3,43,15],[44,3,44,15],[0,14,0,15],[2,13,2,15],[11,4,11,7],[13,9,13,10],[11,9,11,10],[8,6,8,7],[2,11,2,12],[0,12,0,13],[1,12,1,13],[10,9,10,10],[10,3,10,7],[2,1,2,10],[0,10,0,11],[1,10,1,11],[7,9,8,10],[7,11,8,12],[20,3,20,7],[16,11,16,15],[19,14,19,15],[19,3,19,7],[20,10,20,11],[20,14,20,15],[18,3,18,7],[14,3,14,7],[14,9,14,10],[13,3,13,7],[12,11,12,15],[17,3,17,7],[15,5,15,7],[17,13,17,15],[14,11,14,15],[12,3,12,7],[12,9,12,10],[15,3,15,4],[15,11,15,15],[16,3,16,7]]}
[null,"APPLICATION FOR EXPORT BILL (WITH LETTER OF CREDIT)",null,null,null,null,null,null,null,null,"営業店発送日",null,"国際業務室発送日",null,"国際業務室用"]
[null,"信用状つき輸出為替取組依頼書",null,null,null,null,null,null,null,null,"（　　　　　　　　）",null,"（　　　　　　　　）"]
[null,"ＴＯ ＴＨＥ ＳＥＮＳＨＵ ＩＫＥＤＡ　ＢＡＮＫ, ＬＴＤ．",null,null,null,null,null,null,null,null,null,"ＤＡＴＥ （日付）",null,{"$f":"入力シート!D4","v":"00:00:00"}]
[null,"In accordance with our general letter of hypothecation on foreign documentary bill of exchange "]
[null,"previously submitted to you, we herewith hand you our drafts and documents described below "]
[null,"for your NEGOTIATION/COLLECTION.  Kindly credit the proceeds to our YEN/DOLLAR account with you.（該当に○をお願いします）"]
[]
[null,"依頼種別",null,{"$f":"入力シート!D6","v":0},"買取",{"$f":"入力シート!F6","v":0},"取立",null,null,"L/G NEGO\n（念書付買取）",null,"CABLE　NEGO\n（電信照会後買取）",null,"⇒OKED　DATE\n　（　　　　　　　　　）",null,"期日休日証明"]
[null,"OUR　NO.（当行参照番号）",null,null,"-",null,"（店番　　　　　）"]
[]
[null,"APPLICANT（依頼人）",null,{"$f":"入力シート!D8","v":0},null,null,null,null,null,"INTEREST TO BE BORN BY\n（利息負担者）",null,{"$f":"入力シート!L8","v":0},"SHIPPER\n（国内）",{"$f":"入力シート!N8","v":0},"BUYER\n（海外）"]
[null,"DRAFT AMOUNT（手形金額）",null,{"$f":"入力シート!D10","v":0},{"$f":"入力シート!E10","v":0},null,null,null,null,"L/C　ORIGINAL",null,{"$f":"入力シート!L10","v":0},"ATTACHED",{"$f":"入力シート!N10","v":0},"NOT　ATTACHED"]
[null,"LESS(IF ANY)",null,{"$f":"入力シート!D12","v":0},null,null,null,null,null,"SHIPPED ON（船積日）",null,{"$f":"入力シート!L12","v":"00:00:00"}]
[null,"TENOR（手形条件）",null,{"$f":"入力シート!D14","v":0},null,null,null,null,null,"FROM（積込港）",null,{"$f":"入力シート!L14","v":"00:00:00"}]
[null,"DUE ON(期日）",null,{"$f":"入力シート!D17","v":"00:00:00"},null,null,null,null,null,"TO（陸揚港）",null,{"$f":"入力シート!L16","v":0}]
[null,"DRAFT NO. & DATE\n（手形番号及び日付）",null,{"$f":"入力シート!D19","v":0},null,{"$f":"入力シート!H19","v":"00:00:00"},null,null,null,"最終目的地",null,{"$f":"入力シート!L18","v":0}]
[null,"L／C NO.（信用状番号）",null,{"$f":"入力シート!D22","v":0},null,null,null,null,null,"PER（船名）",null,{"$f":"入力シート!L20","v":0}]
[null,"DATE（発行日）",null,{"$f":"入力シート!D24","v":"00:00:00"},null,null,null,null,null,"決済方法",{"$f":"入力シート!K22","v":0},"SPOT","金額",{"$f":"入力シート!N22","v":0}]
[null,"ISSUED　BY（発行銀行）",null,{"$f":"入力シート!D26","v":0},null,null,null,null,null,null,{"$f":"入力シート!K24","v":0},"CONT"]
[null,"EXPIRY（有効期限）",null,{"$f":"入力シート!D28","v":"00:00:00"},null,null,null,null,null,null,"CONT NO, 856-",null,{"$f":"入力シート!M25","v":0},"金額　",{"$f":"入力シート!O25","v":0}]
[null,"SHIPPING　EXPIRY（積出期限）",null,{"$f":"入力シート!D30","v":"00:00:00"},null,null,null,null,null,null,"CONT NO. 856-",null,{"$f":"入力シート!M27","v":0},"金額　",{"$f":"入力シート!O27","v":0}]
[null,"PRESENTATION（呈示期間）",null,"WITHIN",{"$f":"入力シート!E32","v":0},null,"DAYS AFTER B/L DATE",null,null,null,"CONT NO. 856-",null,{"$f":"入力シート!M29","v":0},"金額　",{"$f":"入力シート!O29","v":0}]
[null,"A/C（BUYER）（輸入者）",null,{"$f":"入力シート!D34","v":0},null,null,null,null,null,null,{"$f":"入力シート!K31","v":0},"NON-EX.","金額",{"$f":"入力シート!N31","v":0}]
[null,"DRAWER（輸出者）",null,{"$f":"入力シート!D36","v":0},null,null,null,null,null,"OTHER　INSTRUCTIONS IF ANY"]
[null,"COMMODITY&QUANTITY\n（商品名及び数量）",null,{"$f":"入力シート!D38","v":0},null,null,null,null,null,{"$f":"入力シート!J34","v":0}]
[null,"（原産地）",null,{"$f":"入力シート!D40","v":0}]
[]
[null,"DOCUMENTS　ATTACHED",null,"DRAFT","Comm.Inv.","Cons./\nCust.Inv.","B/L/\nair way","Insurance \nPol./Cert.","W/M","Pkg.List","Cert Origin","Cert.","State.","N.N. B/L",{"$f":"入力シート!O43","v":0},{"$f":"入力シート!P43","v":0}]
[null,"（添付書類）",null,{"$f":"入力シート!D44","v":0},{"$f":"入力シート!E44","v":0},{"$f":"入力シート!F44","v":0},{"$f":"入力シート!G44","v":0},{"$f":"入力シート!H44","v":0},{"$f":"入力シート!I44","v":0},{"$f":"入力シート!J44","v":0},{"$f":"入力シート!K44","v":0},{"$f":"入力シート!L44","v":0},{"$f":"入力シート!M44","v":0},{"$f":"入力シート!N44","v":0},{"$f":"入力シート!O44","v":0},{"$f":"入力シート!P44","v":0}]
[]
[null,"振込依頼書",null,{"$f":"入力シート!D46","v":0},"添付",{"$f":"入力シート!F46","v":0},"なし"]
[]
[null,"信用状条件不一致項目",null,{"$f":"入力シート!D48","v":0},"LATE　SHIPMENT（期限後積出）",null,null,null,null,"銀行連絡欄"]
[null,null,null,{"$f":"入力シート!D49","v":0},"LATE　PRESENTATION（呈示期間後呈示）",null,null,null,null,{"$f":"入力シート!D63","v":0}]
[null,null,null,{"$f":"入力シート!D50","v":0},"CREDIT　EXPIRED（有効期限後呈示）"]
[null,null,null,{"$f":"入力シート!D51","v":0},"PARTIAL　SHIPMENT（分割積出）"]
[null,null,null,{"$f":"入力シート!D52","v":0},"その他（　　　　　　　　　　　　　　　　　　　　　　　　　　　　　）",{"$f":"入力シート!F52","v":0},null,null,"　）"]
[null,null,null,{"$f":"入力シート!D53","v":0},"その他（　　　　　　　　　　　　　　　　　　　　　　　　　　　　　）",{"$f":"入力シート!F53","v":0},null,null,"　）"]
[]
[null,"Special Instructions",null,{"$f":"入力シート!D55","v":0},"リスト付信用状",null,"（銀行名：",{"$f":"入力シート!H55","v":0},null,null,null,null,null,null,null,"）"]
[null,"輸出書類送付先詳細情報"]
[null,"送付先名称（銀行名・支店名）",null,{"$f":"入力シート!D58","v":0}]
[null,"送付先の担当部署名（担当者）",null,{"$f":"入力シート!D59","v":0}]
[null,"送付先住所 ZIPCODE",null,{"$f":"入力シート!D60","v":0}]
[null,"送付先電話番号",null,{"$f":"入力シート!D61","v":0}]
[]
[]
[null,{"$f":"IF(入力シート!D67=\"〇\",\"✔\",\"\")","v":""},"「外国為替及び外国貿易法に基づく『貿易に関する支払規制』及び『資金使途規制』等への対応について」を確認しました。「外国為替及び外国貿易法」、「米国OFAC」等の規制対象取引に該当しません。"]
[null,{"$f":"IF(入力シート!D69=\"〇\",\"✔\",\"\")","v":""},"取引関係者およびその実質的支配者は北朝鮮に住所等を有する者等ではありません。"]
[null,{"$f":"IF(入力シート!D70=\"〇\",\"✔\",\"\")","v":""},"取引関係者の中に国連等の経済制裁対象国の住所若しくは居住を有する自然人若しくは主たる事務所を有する法人、その他の団体（当該法人その他の団体の外国にある支店、出張所その他事務所を含む）、またはこれらのものにより実質的に支配されている法人、その他の団体が存在しないことを確認しました。"]
[null,null,null,null,null,null,null,null,null,"店番",{"$f":"入力シート!$D$65","v":0},null,"店名",{"$f":"入力シート!$F$65","v":0}]
[]
[]
[]
[]
[]
[]
[]
[]
[]
[]
[null,null,null,null,null,null,null,null,null,null,null,null,null,null,null,null,null,"国際業務室"]
[null,null,null,null,null,null,null,null,null,null,null,null,null,null,null,null,null,"THE SENSHU IKEDA BANK, LTD.",null,null,null,null,"仲介貿易時のみ記入",null,null,null,"APPLICANT"]
[null,null,null,null,null,null,null,null,null,null,null,null,null,null,null,null,null,null,null,null,null,null,"支払等報告書",null,"証印"]
[null,null,null,null,null,null,null,null,null,null,null,null,null,null,null,null,null,null,null,null,null,null,"□ 要"]
[null,null,null,null,null,null,null,null,null,null,null,null,null,null,null,null,null,null,null,null,null,null,"□ 不要",null,null,null,null,null,null,null,null,null,"営業店"]
[null,null,null,null,null,null,null,null,null,null,null,null,null,null,null,null,null,null,null,null,null,null,"担当者印","証印","係印",null,null,null,null,null,null,null,"証印","係印","署記名印照合"]
[]
[null,null,null,null,null,null,null,null,null,null,null,null,null,null,null,null,null,"(AUTHORIZED SIGNATURE)",null,null,null,null,null,null,null,null,null,null,null,null,null,"（APPLICANT'S　AUTHORIZED　SIGNATURE)"]